fUSD/lending_fUSD_20250120
["ID","MTS","AMOUNT","RATE_DAILY","PERIOD"]
[349658322,1737359466313,-1079.0,0.00021963,2]
[349658323,1737359466323,-1982.52,0.00021963,2]
[349658324,1737359466332,-500.0,0.00021963,2]
[349658325,1737359466341,-1473.34,0.00021963,2]
[349658326,1737359466353,-779.6,0.00021963,2]
[349658327,1737359466362,-817.79,0.00021963,2]
[349658328,1737359466372,-4398.49,0.00021963,2]
[349658329,1737359466381,-926.31,0.00021963,2]
[349658330,1737359466390,-1203.2,0.00021963,2]
[349658331,1737359466399,-710.98,0.00021963,2]
[349658332,1737359466410,-500.0,0.00021963,2]
[349658333,1737359466419,-2061.96,0.00021963,2]
[349658334,1737359466428,-1482.39,0.00021963,2]
[349658335,1737359466438,-805.2,0.00021963,2]
[349658336,1737359466449,-548.96,0.00021963,2]
[349658337,1737359466458,-3448.0,0.00021963,2]
[349658338,1737359466467,-1177.2,0.00021963,2]
[349658339,1737359466476,-1792.51,0.00021963,2]
[349658340,1737359466486,-2000.07,0.00021963,2]
[349658341,1737359466496,-951.51,0.00021963,2]
[349658342,1737359466506,-266.52033366,0.00021963,2]
[349658343,1737359466515,-1668.68,0.00021963,2]
[349658344,1737359466524,-894.2,0.00021963,2]
[349658345,1737359466533,-907.24,0.00021963,2]
[349658346,1737359466542,-2517.18,0.00021963,2]
[349658347,1737359466551,-884.91,0.00021963,2]
[349658348,1737359466561,-341.20284277,0.00021963,2]
[349658349,1737359466570,-500.0,0.00021963,2]
[349658350,1737359466580,-2474.52,0.00021963,2]
[349658351,1737359466590,-1054.83,0.00021963,2]
[349658352,1737359466602,-1387.21,0.00021963,2]
[349658353,1737359466611,-620.97,0.00021963,2]
[349658354,1737359466620,-500.0,0.00021963,2]
[349658355,1737359466629,-1169.54,0.00021963,2]
[349658356,1737359466638,-681.24,0.00021963,2]
[349658357,1737359466647,-500.0,0.00021963,2]
[349658358,1737359466657,-500.0,0.00021964,2]
[349658359,1737359466666,-594.3,0.00021964,2]
[349658360,1737359466675,-500.0,0.00021964,2]
[349658361,1737359466684,-746.35,0.00021964,2]
[349658362,1737359466693,-695.05,0.00021964,2]
[349658363,1737359466702,-956.85,0.00021964,2]
[349658364,1737359466711,-500.0,0.00021964,2]
[349658365,1737359466720,-679.77,0.00021964,2]
[349658366,1737359466729,-1162.51,0.00021964,2]
[349658367,1737359466739,-500.0,0.00021964,2]
[349658368,1737359466748,-500.0,0.00021964,2]
[349658369,1737359466757,-500.0,0.00021964,2]
[349658370,1737359466766,-613.78,0.00021964,2]
[349658371,1737359466775,-500.0,0.00021964,2]
[349658372,1737359466784,-998.73,0.00021964,2]
[349658373,1737359466793,-500.0,0.00021964,2]
[349658374,1737359466802,-721.37,0.00021964,2]
[349658375,1737359466811,-803.78,0.00021964,2]
[349658376,1737359466820,-530.28748216,0.00021964,2]
[349658377,1737359466830,-564.33,0.00021964,2]
[349658378,1737359466839,-503.83,0.00021964,2]
[349658379,1737359466851,-500.0,0.00021964,2]
[349658380,1737359466860,-500.0,0.00021964,2]
[349658381,1737359466869,-876.13,0.00021964,2]
[349658382,1737359466879,-500.0,0.00021964,2]
[349658383,1737359466888,-500.0,0.00021964,2]
[349658384,1737359466898,-171.54331519,0.00021964,2]
[349658385,1737359466907,-500.0,0.00021964,2]
[349658386,1737359466916,-591.89,0.00021964,2]
[349658387,1737359467039,-500.0,0.00021964,2]
[349658388,1737359467049,-271.68231162,0.00021964,2]
[349658389,1737359467059,-1170.98,0.00021964,2]
[349658390,1737359467067,-500.0,0.00021964,2]
[349658391,1737359467076,-500.0,0.00021964,2]
[349658392,1737359467086,-477.78285868,0.00021964,2]
[349658393,1737359467098,-1457.34,0.00021964,2]
[349658394,1737359467109,-1192.12,0.00021964,2]
[349658395,1737359467118,-1630.39,0.00021964,2]
[349658396,1737359467127,-500.0,0.00021964,2]
[349658397,1737359467136,-1752.84,0.00021964,2]
[349658398,1737359467145,-500.0,0.00021964,2]
[349658399,1737359467155,-776.12,0.00021964,2]
[349658400,1737359467165,-798.28,0.00021964,2]
[349658401,1737359467174,-500.0,0.00021964,2]
[349658402,1737359467184,-621.6,0.00021964,2]
[349658403,1737359467193,-500.0,0.00021964,2]
[349658404,1737359467202,-1138.23,0.00021964,2]
[349658405,1737359467212,-873.64,0.00021964,2]
[349658406,1737359467222,-1081.27,0.00021964,2]
[349658407,1737359467232,-1328.3,0.00021964,2]
[349658408,1737359467241,-760.12,0.00021964,2]
[349658409,1737359467251,-4201.07,0.00021964,2]
[349658410,1737359467260,-1224.29,0.00021964,2]
[349658411,1737359467269,-736.71,0.00021964,2]
[349658412,1737359467279,-1940.39,0.00021964,2]
[349658413,1737359467288,-827.491924,0.00021964,2]
[349658414,1737359467298,-500.0,0.00021964,2]
[349658415,1737359467307,-709.33,0.00021964,2]
[349658416,1737359467316,-331.82793434,0.00021964,2]
[349658417,1737359467326,-1825.22,0.00021964,2]
[349658418,1737359467335,-632.12,0.00021964,2]
[349658419,1737359467344,-3582.35,0.00021964,2]
[349658420,1737359467360,-717.32,0.00021964,2]
[349658421,1737359467369,-1796.622825,0.00021964,2]
[349658422,1737359467379,-500.0,0.00021964,2]
[349658423,1737359467388,-500.0,0.00021964,2]
[349658424,1737359467398,-7720.87,0.00021964,2]
[349658425,1737359467409,-500.0,0.00021964,2]
[349658426,1737359467419,-500.0,0.00021964,2]
[349658427,1737359467428,-2283.23,0.00021964,2]
[349658428,1737359467437,-2234.39,0.00021964,2]
[349658429,1737359467448,-618.5,0.00021964,2]
[349658430,1737359467458,-500.0,0.00021964,2]
[349658431,1737359467467,-500.0,0.00021964,2]
[349658432,1737359467477,-713.08,0.00021964,2]
[349658433,1737359467486,-547.72,0.00021964,2]
[349658434,1737359467496,-500.0,0.00021964,2]
[349658435,1737359467505,-577.42,0.00021964,2]
[349658436,1737359467515,-1588.31,0.00021964,2]
[349658437,1737359467524,-1379.24,0.00021964,2]
[349658438,1737359467533,-1036.42,0.00021964,2]
[349658439,1737359467543,-500.0,0.00021964,2]
[349658440,1737359467557,-800.07,0.00021964,2]
[349658441,1737359467569,-1680.43,0.00021964,2]
[349658442,1737359467584,-3857.97,0.00021964,2]
[349658443,1737359467594,-766.22,0.00021964,2]
[349658444,1737359467606,-500.0,0.00021964,2]
[349658445,1737359467616,-500.0,0.00021964,2]
[349658446,1737359467625,-623.72,0.00021964,2]
[349658447,1737359467635,-862.26,0.00021964,2]
[349658448,1737359467645,-681.05,0.00021964,2]
[349658449,1737359467655,-651.15,0.00021964,2]
[349658450,1737359467664,-526.75,0.00021964,2]
[349658451,1737359467674,-1464.4,0.00021964,2]
[349658452,1737359467683,-500.0,0.00021964,2]
[349658453,1737359467693,-1742.5,0.00021964,2]
[349658454,1737359467702,-988.26,0.00021964,2]
[349658455,1737359467711,-500.0,0.00021964,2]
[349658456,1737359467720,-500.0,0.00021964,2]
[349658457,1737359467730,-1929.02,0.00021964,2]
[349658458,1737359467739,-500.0,0.00021964,2]
[349658459,1737359467748,-554.29,0.00021964,2]
[349658460,1737359467758,-2608.99,0.00021964,2]
[349658461,1737359467767,-702.59,0.00021964,2]
[349658462,1737359467776,-500.0,0.00021964,2]
[349658463,1737359467785,-892.76,0.00021964,2]
[349658464,1737359467794,-1170.41,0.00021964,2]
[349658465,1737359467804,-3292.27,0.00021964,2]
[349658466,1737359467813,-2063.8,0.00021964,2]
[349658467,1737359467822,-500.0,0.00021964,2]
[349658468,1737359467831,-500.0,0.00021964,2]
[349658469,1737359467840,-500.0,0.00021964,2]
[349658470,1737359467852,-3539.58,0.00021964,2]
[349658471,1737359467862,-500.0,0.00021964,2]
[349658472,1737359467872,-697.16,0.00021964,2]
[349658473,1737359467881,-2023.85,0.00021964,2]
[349658474,1737359467891,-669.59,0.00021964,2]
[349658475,1737359467900,-1075.27,0.00021964,2]
[349658476,1737359467909,-500.0,0.00021964,2]
[349658477,1737359467918,-3688.89,0.00021964,2]
[349658478,1737359467928,-1038.42,0.00021964,2]
[349658479,1737359467936,-838.98,0.00021964,2]
[349658480,1737359467945,-5490.4,0.00021964,2]
[349658481,1737359467954,-1891.28,0.00021964,2]
[349658482,1737359467964,-2548.07,0.00021964,2]
[349658483,1737359467974,-1422.79,0.00021964,2]
[349658484,1737359467983,-500.0,0.00021964,2]
[349658485,1737359467993,-500.0,0.00021964,2]
[349658486,1737359468002,-500.0,0.00021964,2]
[349658487,1737359468011,-2090.87,0.00021964,2]
[349658488,1737359468020,-572.86,0.00021964,2]
[349658489,1737359468030,-2153.11,0.00021964,2]
[349658490,1737359468039,-649.57,0.00021967,2]
[349658491,1737359468048,-500.0,0.00021967,2]
[349658492,1737359468058,-935.12,0.00021967,2]
[349658493,1737359468071,-500.0,0.00021967,2]
[349658494,1737359468081,-1103.37,0.00021967,2]
[349658495,1737359468090,-714.3,0.00021967,2]
[349658496,1737359468101,-1473.59,0.00021967,2]
[349658497,1737359468110,-867.14,0.00021967,2]
[349658498,1737359468119,-714.65,0.00021967,2]
[349658499,1737359468129,-500.0,0.00021967,2]
[349658500,1737359468139,-960.6,0.00021967,2]
[349658501,1737359468148,-546.51,0.00021967,2]
[349658502,1737359468158,-500.0,0.00021967,2]
[349658503,1737359468167,-6295.0,0.00021973,2]
[349658504,1737359468176,-500.0,0.00021973,2]
[349658505,1737359468186,-357.20758559,0.00021973,2]
[349658506,1737359468195,-5512.81118069,0.0002198,2]
[349658507,1737359468206,-150.0,0.00021988,2]
[349658508,1737359468215,-244.84928026,0.00021988,2]
[349658509,1737359468225,-150.0,0.00021988,2]
[349658510,1737359468236,-150.0,0.00021988,2]
[349658511,1737359468246,-150.0,0.00021988,2]
[349658512,1737359468257,-150.0,0.00021988,2]
[349658513,1737359468267,-500.0,0.00021988,2]
[349658514,1737359468276,-150.14937493,0.00021988,2]
[349658515,1737359468285,-500.0,0.00021988,2]
[349658516,1737359468294,-150.0,0.00021988,2]
[349658517,1737359468304,-940.0,0.00021988,2]
[349658518,1737359468314,-179.438524,0.0002199,2]
[349658519,1737359468323,-77628.83640589,0.00021996,2]
[349658520,1737359468332,-500.0,0.00021997,2]
[349658521,1737359468342,-150.0,0.00021998,4]
[349658522,1737359468354,-9314.12598932,0.00021998,2]
[349658523,1737359468363,-252.61264715,0.00021998,2]
[349658524,1737359468372,-107302.19987352,0.00021998,2]
[349658525,1737359468382,-693.56406747,0.00021998,2]
[349658526,1737359468391,-193.52568522,0.00021998,2]
[349658527,1737359468401,-183.67090496,0.00021999,10]
[349658528,1737359468412,-2000.0,0.00021999,2]
[349658529,1737359468422,-441448.27072746,0.00022,2]
[349658530,1737359468718,-166260.96699996,0.00022,2]
[349658531,1737359468730,-1630.03294917,0.00022,2]
[349658532,1737359468741,-27123.11375289,0.00022,2]
[349658533,1737359468752,-1161.54336508,0.00022,2]
[349658534,1737359468763,-1199.04088159,0.00022,2]
[349658535,1737359468774,-17154.15175446,0.00022,2]
[349658536,1737359468784,-66105.21651273,0.00022,2]
[349658537,1737359468793,-2284.75859347,0.00022,2]
[349658538,1737359468803,-6579.98770157,0.00022,10]
[349658539,1737359468812,-3704.2706475,0.00022,2]
[349658540,1737359468823,-1030.5,0.00022,2]
[349658541,1737359469056,-500.0,0.00019497,2]
[349658542,1737359469065,-2380.63,0.00020045,2]
[349658543,1737359469074,-2380.63,0.00020319,2]
[349658544,1737359469083,-177.74,0.00020593,2]
[349658545,1737359469167,-2202.89,0.00020593,2]
[349658546,1737359469176,-2380.63,0.00020867,2]
[349658547,1737359469186,-2380.63,0.00021141,2]
[349658548,1737359469195,-172.24577978,0.00021228,2]
[349658549,1737359469205,-624.25003052,0.00021415,2]
[349658550,1737359469678,-500.0,0.00019497,2]
[349658551,1737359469687,-598.74,0.00019497,2]
[349658552,1737359469697,-500.0,0.00019498,2]
[349658553,1737359469706,-500.0,0.00019771,2]
[349658554,1737359469715,-500.0,0.00020045,2]
[349658555,1737359469724,-500.0,0.00020319,2]
[349658556,1737359469733,-476.93045253,0.00020909,2]
[349658557,1737359469742,-1756.37996948,0.00021415,2]
[349658558,1737359469752,-699.484978,0.00021689,2]
[349658559,1737359469963,-500.0,0.00020593,2]
[349658560,1737359469973,-1449.3321199,0.00021689,2]
[349658561,1737359470064,-500.0,0.00020867,2]
[349658562,1737359470073,-172.24577978,0.00021564,2]
[349658563,1737359470082,-231.8129021,0.00021689,2]
[349658564,1737359470091,-656.40681061,0.00021963,2]
[349658565,1737359470105,-303.89700751,0.00021963,2]
[349658566,1737359470116,-1420.32618188,0.00021963,2]
[349658567,1737359470125,-20135.67381812,0.00022,2]
[349658568,1737359470404,-539.08,0.00019497,2]
[349658569,1737359470416,-500.0,0.00019498,2]
[349658570,1737359470426,-3963.0930228,0.00019594,2]
[349658571,1737359470437,-257.63500001,0.00019594,2]
[349658572,1737359470448,-1890.23765697,0.00019594,2]
[349658573,1737359470465,-800.331155,0.00019594,2]
[349658574,1737359470476,-302.63615393,0.00019594,2]
[349658575,1737359470489,-394.72,0.00019594,2]
[349658576,1737359470500,-853.05,0.00019594,2]
[349658577,1737359470512,-1216.1,0.00019594,2]
[349658578,1737359470574,-1233.79024429,0.00019594,2]
[349658579,1737359470586,-1197.096767,0.00019594,2]
[349658580,1737359470595,-158.450321,0.00019772,2]
[349658581,1737359470608,-341.549679,0.00019772,2]
[349658582,1737359470617,-500.0,0.00021141,2]
[349658583,1737359470626,-443.4503206,0.00021415,2]
[349658584,1737359470811,-30.1796794,0.00021415,2]
[349658585,1737359470821,-510.9203206,0.00022,2]
[349658586,1737359470832,-434.760005,0.00022,2]
[349658587,1737359470845,-116372.13375919,0.00022,2]
[349658588,1737359498218,142.12949006,0.00018606,2]
[349658589,1737359541159,377.396016,0.00023,120]
[349658590,1737360023159,243.91595163,0.00023,120]
[349658591,1737360031161,150.0,0.0002203,120]
[349658592,1737360041062,150.0,0.00012001,2]
[349658593,1737360197454,1051.99710586,0.00020211,60]
[349658597,1737360281198,157.63,0.00010137,2]
[349658600,1737360436134,-1771.35835842,0.00014781,7]
[349658603,1737360552104,-364.35527652,0.00014781,7]
[349658604,1737360552124,-579.80966465,0.00016458,2]
[349658605,1737360552144,-696.93,0.00016558,2]
[349658606,1737360552164,-1411.067753,0.00017783,2]
[349658607,1737360552184,-192.87456794,0.00017873,2]
[349658608,1737360552204,-1434.0,0.000179,5]
[349658609,1737360552223,-226.48803429,0.00018164,2]
[349658610,1737360552243,-334.93,0.00018223,2]
[349658611,1737360552264,-250.0,0.00018223,2]
[349658612,1737360552285,-250.0,0.00018383,2]
[349658613,1737360552308,-1500.0,0.00018476,2]
[349658614,1737360552328,-250.0,0.00018476,2]
[349658615,1737360552350,-300.0,0.00018636,2]
[349658616,1737360552370,-1940.73,0.00018637,2]
[349658617,1737360552390,-1000.0,0.00018655,2]
[349658618,1737360552410,-1063.17954297,0.00018683,2]
[349658619,1737360553111,-199.0938502,0.00018683,2]
[349658620,1737360554097,-10651.38660683,0.00018683,2]
[349658621,1737360554117,-1403.38955317,0.00018714,2]
[349658622,1737360564095,-441.21044683,0.00018714,2]
[349658623,1737360564116,-307.54,0.00018722,2]
[349658624,1737360564138,-502.36,0.00018765,2]
[349658625,1737360564159,-474.77,0.00018815,2]
[349658626,1737360564180,-696.93,0.00018822,2]
[349658627,1737360564203,-15.03080456,0.00018897,2]
[349658628,1737360566122,-319.89919544,0.00018897,2]
[349658629,1737360566142,-648.78,0.00018962,30]
[349658630,1737360566162,-305.85,0.00019053,2]
[349658631,1737360566182,-173.61,0.0001928,2]
[349658632,1737360566202,-1376.85712029,0.00019378,2]
[349658633,1737360611985,163.22,0.0001886,2]
[349658636,1737360632424,-305.24296414,0.00019378,2]
[349658637,1737360632477,-3081.6557483,0.00019378,2]
[349658638,1737360632488,-5638.446885,0.00019378,2]
[349658639,1737360632531,-5139.0,0.00019378,2]
[349658640,1737360632637,-1226.79728227,0.00019378,2]
[349658641,1737360632646,-674.717,0.00019397,2]
[349658642,1737360632655,-513.11558716,0.00019397,2]
[349658643,1737360632665,-192.87456793,0.00019397,2]
[349658644,1737360632674,-180.83656366,0.00019486,2]
[349658645,1737360632683,-500.0,0.00019497,2]
[349658646,1737360632692,-500.0,0.00019497,2]
[349658647,1737360632702,-500.0,0.00019497,2]
[349658648,1737360632711,-726.57,0.00019497,2]
[349658649,1737360632722,-500.0,0.00019497,2]
[349658650,1737360632731,-500.0,0.00019497,2]
[349658651,1737360632740,-500.0,0.00019497,2]
[349658652,1737360632750,-500.0,0.00019497,2]
[349658653,1737360632760,-704.15,0.00019497,2]
[349658654,1737360632772,-500.0,0.00019497,2]
[349658655,1737360632782,-569.54,0.00019497,2]
[349658656,1737360632791,-500.0,0.00019497,2]
[349658657,1737360632801,-500.0,0.00019497,2]
[349658658,1737360632811,-500.0,0.00019497,2]
[349658659,1737360632820,-500.0,0.00019497,2]
[349658660,1737360632830,-500.0,0.00019497,2]
[349658661,1737360632840,-500.0,0.00019497,2]
[349658662,1737360632851,-500.0,0.00019497,2]
[349658663,1737360632863,-500.0,0.00019497,2]
[349658664,1737360632873,-500.0,0.00019497,2]
[349658665,1737360632882,-500.0,0.00019497,2]
[349658666,1737360632891,-500.0,0.00019497,2]
[349658667,1737360632900,-477.78285868,0.00019497,2]
[349658668,1737360632909,-953.91,0.00019497,2]
[349658669,1737360632918,-547.58,0.00019497,2]
[349658670,1737360632927,-1060.66,0.00019497,2]
[349658671,1737360632937,-1113.27,0.00019497,2]
[349658672,1737360632947,-500.0,0.00019497,2]
[349658673,1737360633131,-826.51,0.00019497,2]
[349658674,1737360633141,-519.76,0.00019497,2]
[349658675,1737360633152,-500.0,0.00019497,2]
[349658676,1737360633161,-500.0,0.00019497,2]
[349658677,1737360633171,-784.0,0.00019497,2]
[349658678,1737360633181,-806.63,0.00019497,2]
[349658679,1737360633191,-500.0,0.00019497,2]
[349658680,1737360633201,-642.56,0.00019497,2]
[349658681,1737360633210,-500.0,0.00019497,2]
[349658682,1737360633219,-796.48,0.00019497,2]
[349658683,1737360633233,-851.02,0.00019497,2]
[349658684,1737360633243,-500.0,0.00019497,2]
[349658685,1737360633252,-500.0,0.00019497,2]
[349658686,1737360633261,-500.0,0.00019497,2]
[349658687,1737360633270,-237.39701415,0.00019497,2]
[349658688,1737360633280,-500.0,0.00019497,2]
[349658689,1737360633289,-500.0,0.00019497,2]
[349658690,1737360633298,-500.0,0.00019497,2]
[349658691,1737360633307,-500.0,0.00019497,2]
[349658692,1737360633316,-673.1,0.00019497,2]
[349658693,1737360633325,-500.0,0.00019497,2]
[349658694,1737360633334,-500.0,0.00019497,2]
[349658695,1737360633344,-500.0,0.00019497,2]
[349658696,1737360633353,-500.0,0.00019497,2]
[349658697,1737360633365,-500.0,0.00019497,2]
[349658698,1737360633375,-731.51,0.00019497,2]
[349658699,1737360633386,-500.0,0.00019497,2]
[349658700,1737360633396,-530.27658,0.00019497,2]
[349658701,1737360633405,-500.0,0.00019497,2]
[349658702,1737360633415,-84.45254615,0.00019497,2]
[349658703,1737360633441,-415.54745385,0.00019497,2]
[349658704,1737360633450,-500.0,0.00019497,2]
[349658705,1737360633460,-1396.49,0.00019497,2]
[349658706,1737360633469,-1122.889265,0.00019497,2]
[349658707,1737360633479,-500.0,0.00019497,2]
[349658708,1737360633488,-155.929331,0.00019497,2]
[349658709,1737360633498,-559.32,0.00019497,2]
[349658710,1737360633508,-1034.54,0.00019497,2]
[349658711,1737360633517,-1050.27,0.00019497,2]
[349658712,1737360633526,-948.52,0.00019497,2]
[349658713,1737360633536,-538.91,0.00019497,2]
[349658714,1737360633545,-500.0,0.00019497,2]
[349658715,1737360633555,-500.0,0.00019497,2]
[349658716,1737360633565,-500.0,0.00019497,2]
[349658717,1737360633574,-728.99,0.00019497,2]
[349658718,1737360633584,-500.0,0.00019497,2]
[349658719,1737360633594,-611.67,0.00019497,2]
[349658720,1737360633604,-589.2,0.00019497,2]
[349658721,1737360633617,-2483.55,0.00019497,2]
[349658722,1737360633628,-500.0,0.00019497,2]
[349658723,1737360633639,-2509.41,0.00019497,2]
[349658724,1737360633649,-839.06,0.00019497,2]
[349658725,1737360633659,-445.02431043,0.00019497,2]
[349658726,1737360633669,-659.07,0.00019497,2]
[349658727,1737360633680,-500.0,0.00019497,2]
[349658728,1737360633690,-3764.12,0.00019497,2]
[349658729,1737360633700,-993.68,0.00019497,2]
[349658730,1737360633710,-625.02,0.00019497,2]
[349658731,1737360633720,-1289.39,0.00019497,2]
[349658732,1737360633730,-821.25,0.00019497,2]
[349658733,1737360633740,-1435.4,0.00019497,2]
[349658734,1737360633749,-646.15,0.00019497,2]
[349658735,1737360633763,-500.0,0.00019497,2]
[349658736,1737360633773,-500.0,0.00019497,2]
[349658737,1737360633783,-867.01,0.00019497,2]
[349658738,1737360633793,-500.0,0.00019497,2]
[349658739,1737360633804,-2723.73,0.00019497,2]
[349658740,1737360633815,-500.0,0.00019497,2]
[349658741,1737360633825,-903.02,0.00019497,2]
[349658742,1737360633834,-500.0,0.00019498,2]
[349658743,1737360633844,-500.0,0.00019498,2]
[349658744,1737360633856,-500.0,0.00019498,2]
[349658745,1737360633866,-500.0,0.00019498,2]
[349658746,1737360633876,-500.0,0.00019498,2]
[349658747,1737360633886,-500.0,0.00019498,2]
[349658748,1737360633896,-505.2,0.00019498,2]
[349658749,1737360633906,-500.0,0.00019498,2]
[349658750,1737360633916,-171.54331519,0.00019498,2]
[349658751,1737360633926,-447.09,0.00019498,2]
[349658752,1737360633936,-271.68231162,0.00019498,2]
[349658753,1737360633946,-500.0,0.00019498,2]
[349658754,1737360633956,-500.0,0.00019498,2]
[349658755,1737360633966,-500.0,0.00019498,2]
[349658756,1737360633976,-505.19,0.00019498,2]
[349658757,1737360633987,-500.0,0.00019498,2]
[349658758,1737360633996,-500.0,0.00019498,2]
[349658759,1737360634006,-500.0,0.00019498,2]
[349658760,1737360634016,-500.0,0.00019498,2]
[349658761,1737360634026,-605.22,0.00019498,2]
[349658762,1737360634035,-189.4176432,0.00019498,2]
[349658763,1737360634045,-500.0,0.00019498,2]
[349658764,1737360634054,-500.0,0.00019498,2]
[349658765,1737360634064,-500.0,0.00019498,2]
[349658766,1737360634073,-500.0,0.00019498,2]
[349658767,1737360634083,-500.0,0.00019498,2]
[349658768,1737360634096,-500.0,0.00019498,2]
[349658769,1737360634107,-500.0,0.00019498,2]
[349658770,1737360634117,-500.0,0.00019498,2]
[349658771,1737360634126,-500.0,0.00019498,2]
[349658772,1737360634136,-500.0,0.00019498,2]
[349658773,1737360634146,-500.0,0.00019498,2]
[349658774,1737360634155,-500.0,0.00019498,2]
[349658775,1737360634165,-55277.4963697,0.00019498,2]
[349658776,1737360634178,-1076.69092,0.00019498,2]
[349658777,1737360636605,-329.74706209,0.00019498,2]
[349658778,1737360636680,590.33,0.00018876,2]
[349658797,1737360638645,-500.0,0.00019497,2]
[349658798,1737360638656,-15167.8274884,0.00019498,2]
[349658799,1737360638700,-2683.58888248,0.00019498,2]
[349658800,1737360638712,-2323.49265339,0.00019498,2]
[349658820,1737360640844,-2614.81,0.00019497,2]
[349658822,1737360640855,-500.0,0.00019497,2]
[349658824,1737360640867,-7697.75103324,0.00019498,2]
[349658827,1737360640879,-5339.17163922,0.00019498,2]
[349658831,1737360640917,-1661.40468399,0.00019498,2]
[349658851,1737360641154,-18101.92927596,0.00019498,2]
[349658852,1737360641164,-334.93,0.00019571,2]
[349658853,1737360641174,-307.54,0.00019658,2]
[349658854,1737360641183,-174.33,0.0001966,2]
[349658855,1737360641192,-172.04766848,0.00019668,2]
[349658856,1737360641201,-1053.57,0.00019669,2]
[349658857,1737360641211,-1437.49,0.00019669,2]
[349658858,1737360641220,-348.20376197,0.00019669,2]
[349658859,1737360641317,-521.27623803,0.00019669,2]
[349658860,1737360641327,-715.49,0.00019669,2]
[349658861,1737360641337,-175.81601222,0.00019669,2]
[349658862,1737360641350,-1504.52398778,0.00019669,2]
[349658863,1737360641363,-1423.87,0.00019669,2]
[349658864,1737360641372,-1700.94,0.00019669,2]
[349658865,1737360641381,-511.12,0.00019669,2]
[349658866,1737360641390,-500.0,0.00019669,2]
[349658867,1737360641399,-1239.07,0.00019669,2]
[349658868,1737360641408,-500.0,0.00019669,2]
[349658869,1737360641417,-926.5,0.00019669,2]
[349658870,1737360641426,-1962.76174514,0.00019669,2]
[349658871,1737360641439,-786.29825486,0.00019669,2]
[349658872,1737360641448,-286.30174514,0.00019669,2]
[349658873,1737360641463,-1868.69825486,0.00019669,2]
[349658874,1737360641472,-288.90174514,0.00019669,2]
[349658877,1737360643301,-500.0,0.00019497,2]
[349658878,1737360643313,-961.13825486,0.00019669,2]
[349658879,1737360643325,-594.7,0.00019669,2]
[349658880,1737360643336,-500.0,0.00019669,2]
[349658881,1737360643346,-1573.24,0.00019669,2]
[349658882,1737360643355,-1042.93,0.00019669,2]
[349658883,1737360643366,-659.27,0.00019669,2]
[349658884,1737360643376,-567.02,0.00019669,2]
[349658885,1737360643386,-500.0,0.00019669,2]
[349658886,1737360643395,-1546.58,0.00019669,2]
[349658887,1737360643405,-500.0,0.00019669,2]
[349658888,1737360643414,-2643.28,0.00019669,2]
[349658889,1737360643423,-2168.69,0.00019669,2]
[349658890,1737360643432,-1412.15,0.0001967,2]
[349658891,1737360643442,-1427.02,0.0001967,2]
[349658892,1737360643451,-500.0,0.0001967,2]
[349658893,1737360643461,-500.04,0.0001967,2]
[349658894,1737360643470,-500.0,0.0001967,2]
[349658895,1737360643479,-1089.06,0.0001967,2]